Workbook

Sheet Va deGRADE compare Rx
A1: Spectacle Compare GRADE SIMPLIFIED Master | G1: Alaska Blind Child Discovery | N1: Custom variables: | T1: ellipse factor | AI1: Axis adjust | AW1: 2025 | AY1: endAccom
A2: 2021-02-22 | T2: 2 | AI2: 45 | AW2: over-Rx | AY2: 60
D3: Target | K3: Candidate | R3: Ellipsoid | V3: ASTIGMATISM | Z3: SPHERICAL EQUIVALENT | AD3: ANISOMETROPIA | AF3: Pupillary Distance
A4: patient | C4: AGE | D4: SPHtR | E4: CYLtR | F4: AXIStR | G4: SPHtL | H4: CYLtL | I4: AXIStL | J4: PDt | K4: SPHcR | L4: CylcR | M4: AXIScR | N4: SPHcL | O4: CYLcL | P4: AXIScL | Q4: PDl | R4: #-ellipseR | S4: GRADE-R | T4: #-ellipseL | U4: GRADE-L | V4: #-cylR | W4: GRADEcylR | X4: #-cylL | Y4: GRADEcylL | Z4: #-spheqR | AA4: GRADEsphR | AB4: #-spheqL | AC4: GRADEsphL | AD4: #-aniso | AE4: GRADEaniso | AF4: #pd | AG4: GRADEpd | AI4: AXISadjcR | AJ4: AXISadjcL | AK4: MtR | AL4: J0tR | AM4: J45tR | AN4: MtL | AO4: J0tL | AP4: J45tL | AQ4: McR | AR4: J0cR | AS4: J45cR | AT4: McL | AU4: J0cL | AV4: J45cL | AW4: accom-R | AX4: accom-L | AY4: AGEadj | AZ4: radR | BA4: radL
A5: example original | C5: 40 | D5: -1 | E5: 1 | F5: 90 | G5: -2 | H5: 5 | I5: 90 | J5: 60 | K5: -0.75 | L5: 1 | M5: 83 | N5: -1.5 | O5: 5 | P5: 79 | Q5: 65 | R5: =SQRT(($T$2*V5*V5)+Z5*Z5) -> 0.61 | S5: =IF(R5<1.01,"A",IF(R5<2.01,"B",IF(R5<3.01,"C","poor match"))) -> A | T5: =SQRT(($T$2*X5*X5)+AB5*AB5) -> 2.32 | U5: =IF(T5<1.01,"A",IF(T5<2.01,"B",IF(T5<3.01,"C","poor match"))) -> C | V5: =(AZ5/(0.07*E5+0.25)) -> 0.38 | W5: =IF(V5<1.01,"A",IF(V5<2.01,"B",IF(V5<3.01,"C","poor match"))) -> A | X5: =BA5/(0.07*H5+0.25) -> 1.59 | Y5: =IF(X5<1.01,"A",IF(X5<2.01,"B",IF(X5<3.01,"C","poor match"))) -> B | Z5: =IF(AW5>0,2*AW5,(AW5/(0.019*AY5-1.65))) -> 0.28 | AA5: =IF(Z5<1.01,"A",IF(Z5<2.01,"B",IF(Z5<3.01,"C","poor match"))) -> A | AB5: =IF(AX5>0,2*AX5,((AX5)/(0.019*AY5-1.65))) -> 0.56 | AC5: =IF(AB5<1.01,"A",IF(AB5<2.01,"B",IF(AB5<3.01,"C","poor match"))) -> A | AD5: =ABS((AN5-AK5)-(AT5-AQ5))*2 -> 0.5 | AE5: =IF(AD5<1.01,"A",IF(AD5<2.01,"B",IF(AD5<3.01,"C","poor match"))) -> A | AF5: =(ABS(J5-Q5))/(4.165*2.7183^(-0.05*(AK5+AN5))) -> 1.2 | AG5: =IF(AF5<1.01,"A",IF(AF5<2.01,"B",IF(AF5<3.01,"C","poor match"))) -> B | AI5: =M5+($AI$2-F5) -> 38 | AJ5: =P5+($AI$2-I5) -> 34 | AK5: =D5+E5/2 -> -0.5 | AL5: =-((E5+0.000001)/2)*(COS(2*$AI$2*3.1416/180)) -> 0.00 | AM5: =-((0.000001+E5)/2)*(SIN(2*$AI$2*3.1416/180)) -> -0.50 | AN5: =G5+H5/2 -> 0.50 | AO5: =-((H5+0.000001)/2)*(COS(2*$AI$2*3.1416/180)) -> 0.00 | AP5: =-((0.000001+H5)/2)*(SIN(2*$AI$2*3.1416/180)) -> -2.50 | AQ5: =K5+L5/2 -> -0.25 | AR5: =-((L5+0.000001)/2)*(COS(2*AI5*3.1416/180)) -> -0.12 | AS5: =-((0.000001+L5)/2)*(SIN(2*AI5*3.1416/180)) -> -0.49 | AT5: =N5+O5/2 -> 1 | AU5: =-((O5+0.000001)/2)*(COS(2*AJ5*3.1416/180)) -> -0.94 | AV5: =-((0.000001+O5)/2)*(SIN(2*AJ5*3.1416/180)) -> -2.32 | AW5: =-AQ5+AK5 -> -0.25 | AX5: =-1*(-AN5+AT5) -> -0.50 | AY5: =IF(C5>$AY$2,$AY$2,C5) -> 40 | AZ5: =SQRT((AL5-AR5)^2+(AM5-AS5)^2) -> 0.12 | BA5: =SQRT((AO5-AU5)^2+(AP5-AV5)^2) -> 0.95
C6: 40 | R6: =SQRT(($T$2*V6*V6)+Z6*Z6) -> 0.00 | S6: =IF(R6<1.01,"A",IF(R6<2.01,"B",IF(R6<3.01,"C","poor match"))) -> A | T6: =SQRT(($T$2*X6*X6)+AB6*AB6) -> 0.00 | U6: =IF(T6<1.01,"A",IF(T6<2.01,"B",IF(T6<3.01,"C","poor match"))) -> A | V6: 0.00 | W6: A | X6: =BA6/(0.07*H6+0.25) -> 0.00 | Y6: A | Z6: 0.00 | AA6: A | AB6: 0.00 | AC6: A | AD6: =ABS((AN6-AK6)-(AT6-AQ6))*2 -> 0 | AE6: =IF(AD6<1.01,"A",IF(AD6<2.01,"B",IF(AD6<3.01,"C","poor match"))) -> A | AF6: =(ABS(J6-Q6))/(4.165*2.7183^(-0.05*(AK6+AN6))) -> 0.0 | AG6: =IF(AF6<1.01,"A",IF(AF6<2.01,"B",IF(AF6<3.01,"C","poor match"))) -> A | AI6: =M6+($AI$2-F6) -> 45 | AJ6: =P6+($AI$2-I6) -> 45 | AK6: =D6+E6/2 -> 0 | AL6: =-((E6+0.000001)/2)*(COS(2*$AI$2*3.1416/180)) -> 0.00 | AM6: =-((0.000001+E6)/2)*(SIN(2*$AI$2*3.1416/180)) -> -0.00 | AN6: =G6+H6/2 -> 0.00 | AO6: =-((H6+0.000001)/2)*(COS(2*$AI$2*3.1416/180)) -> 0.00 | AP6: =-((0.000001+H6)/2)*(SIN(2*$AI$2*3.1416/180)) -> -0.00 | AQ6: =K6+L6/2 -> 0 | AR6: =-((L6+0.000001)/2)*(COS(2*AI6*3.1416/180)) -> 0.00 | AS6: =-((0.000001+L6)/2)*(SIN(2*AI6*3.1416/180)) -> -0.00 | AT6: =N6+O6/2 -> 0 | AU6: =-((O6+0.000001)/2)*(COS(2*AJ6*3.1416/180)) -> 0.00 | AV6: =-((0.000001+O6)/2)*(SIN(2*AJ6*3.1416/180)) -> -0.00 | AW6: =-AQ6+AK6 -> 0 | AX6: =-1*(-AN6+AT6) -> 0.00 | AY6: 40 | AZ6: 0.00 | BA6: 0.00
C7: 40 | R7: 0.00 | S7: A | T7: 0.00 | U7: A | V7: 0.00 | W7: A | X7: 0.00 | Y7: A | Z7: 0.00 | AA7: A | AB7: 0.00 | AC7: A | AD7: 0 | AE7: A | AF7: 0.0 | AG7: A | AI7: 45 | AJ7: 45 | AK7: 0 | AL7: 0.00 | AM7: -0.00 | AN7: 0.00 | AO7: 0.00 | AP7: -0.00 | AQ7: 0 | AR7: 0.00 | AS7: -0.00 | AT7: 0 | AU7: 0.00 | AV7: -0.00 | AW7: 0 | AX7: 0.00 | AY7: 40 | AZ7: 0.00 | BA7: 0.00
C8: 40 | R8: 0.00 | S8: A | T8: 0.00 | U8: A | V8: 0.00 | W8: A | X8: 0.00 | Y8: A | Z8: 0.00 | AA8: A | AB8: 0.00 | AC8: A | AD8: 0 | AE8: A | AF8: 0.0 | AG8: A | AI8: 45 | AJ8: 45 | AK8: 0 | AL8: 0.00 | AM8: -0.00 | AN8: 0.00 | AO8: 0.00 | AP8: -0.00 | AQ8: 0 | AR8: 0.00 | AS8: -0.00 | AT8: 0 | AU8: 0.00 | AV8: -0.00 | AW8: 0 | AX8: 0.00 | AY8: 40 | AZ8: 0.00 | BA8: 0.00
C9: 40 | R9: 0.00 | S9: A | T9: 0.00 | U9: A | V9: 0.00 | W9: A | X9: 0.00 | Y9: A | Z9: 0.00 | AA9: A | AB9: 0.00 | AC9: A | AD9: 0 | AE9: A | AF9: 0.0 | AG9: A | AI9: 45 | AJ9: 45 | AK9: 0 | AL9: 0.00 | AM9: -0.00 | AN9: 0.00 | AO9: 0.00 | AP9: -0.00 | AQ9: 0 | AR9: 0.00 | AS9: -0.00 | AT9: 0 | AU9: 0.00 | AV9: -0.00 | AW9: 0 | AX9: 0.00 | AY9: 40 | AZ9: 0.00 | BA9: 0.00
C10: 40 | R10: 0.00 | S10: A | T10: 0.00 | U10: A | V10: 0.00 | W10: A | X10: 0.00 | Y10: A | Z10: 0.00 | AA10: A | AB10: 0.00 | AC10: A | AD10: 0 | AE10: A | AF10: 0.0 | AG10: A | AI10: 45 | AJ10: 45 | AK10: 0 | AL10: 0.00 | AM10: -0.00 | AN10: 0.00 | AO10: 0.00 | AP10: -0.00 | AQ10: 0 | AR10: 0.00 | AS10: -0.00 | AT10: 0 | AU10: 0.00 | AV10: -0.00 | AW10: 0 | AX10: 0.00 | AY10: 40 | AZ10: 0.00 | BA10: 0.00
C11: 40 | R11: 0.00 | S11: A | T11: 0.00 | U11: A | V11: 0.00 | W11: A | X11: 0.00 | Y11: A | Z11: 0.00 | AA11: A | AB11: 0.00 | AC11: A | AD11: 0 | AE11: A | AF11: 0.0 | AG11: A | AI11: 45 | AJ11: 45 | AK11: 0 | AL11: 0.00 | AM11: -0.00 | AN11: 0.00 | AO11: 0.00 | AP11: -0.00 | AQ11: 0 | AR11: 0.00 | AS11: -0.00 | AT11: 0 | AU11: 0.00 | AV11: -0.00 | AW11: 0 | AX11: 0.00 | AY11: 40 | AZ11: 0.00 | BA11: 0.00
C12: 40 | R12: 0.00 | S12: A | T12: 0.00 | U12: A | V12: 0.00 | W12: A | X12: 0.00 | Y12: A | Z12: 0.00 | AA12: A | AB12: 0.00 | AC12: A | AD12: 0 | AE12: A | AF12: 0.0 | AG12: A | AI12: 45 | AJ12: 45 | AK12: 0 | AL12: 0.00 | AM12: -0.00 | AN12: 0.00 | AO12: 0.00 | AP12: -0.00 | AQ12: 0 | AR12: 0.00 | AS12: -0.00 | AT12: 0 | AU12: 0.00 | AV12: -0.00 | AW12: 0 | AX12: 0.00 | AY12: 40 | AZ12: 0.00 | BA12: 0.00
C13: 40 | R13: 0.00 | S13: A | T13: 0.00 | U13: A | V13: 0.00 | W13: A | X13: 0.00 | Y13: A | Z13: 0.00 | AA13: A | AB13: 0.00 | AC13: A | AD13: 0 | AE13: A | AF13: 0.0 | AG13: A | AI13: 45 | AJ13: 45 | AK13: 0 | AL13: 0.00 | AM13: -0.00 | AN13: 0.00 | AO13: 0.00 | AP13: -0.00 | AQ13: 0 | AR13: 0.00 | AS13: -0.00 | AT13: 0 | AU13: 0.00 | AV13: -0.00 | AW13: 0 | AX13: 0.00 | AY13: 40 | AZ13: 0.00 | BA13: 0.00
C14: 40 | R14: 0.00 | S14: A | T14: 0.00 | U14: A | V14: 0.00 | W14: A | X14: 0.00 | Y14: A | Z14: 0.00 | AA14: A | AB14: 0.00 | AC14: A | AD14: 0 | AE14: A | AF14: 0.0 | AG14: A | AI14: 45 | AJ14: 45 | AK14: 0 | AL14: 0.00 | AM14: -0.00 | AN14: 0.00 | AO14: 0.00 | AP14: -0.00 | AQ14: 0 | AR14: 0.00 | AS14: -0.00 | AT14: 0 | AU14: 0.00 | AV14: -0.00 | AW14: 0 | AX14: 0.00 | AY14: 40 | AZ14: 0.00 | BA14: 0.00
C15: 40 | R15: 0.00 | S15: A | T15: 0.00 | U15: A | V15: 0.00 | W15: A | X15: 0.00 | Y15: A | Z15: 0.00 | AA15: A | AB15: 0.00 | AC15: A | AD15: 0 | AE15: A | AF15: 0.0 | AG15: A | AI15: 45 | AJ15: 45 | AK15: 0 | AL15: 0.00 | AM15: -0.00 | AN15: 0.00 | AO15: 0.00 | AP15: -0.00 | AQ15: 0 | AR15: 0.00 | AS15: -0.00 | AT15: 0 | AU15: 0.00 | AV15: -0.00 | AW15: 0 | AX15: 0.00 | AY15: 40 | AZ15: 0.00 | BA15: 0.00
C16: 40 | R16: 0.00 | S16: A | T16: 0.00 | U16: A | V16: 0.00 | W16: A | X16: 0.00 | Y16: A | Z16: 0.00 | AA16: A | AB16: 0.00 | AC16: A | AD16: 0 | AE16: A | AF16: 0.0 | AG16: A | AI16: 45 | AJ16: 45 | AK16: 0 | AL16: 0.00 | AM16: -0.00 | AN16: 0.00 | AO16: 0.00 | AP16: -0.00 | AQ16: 0 | AR16: 0.00 | AS16: -0.00 | AT16: 0 | AU16: 0.00 | AV16: -0.00 | AW16: 0 | AX16: 0.00 | AY16: 40 | AZ16: 0.00 | BA16: 0.00
C17: 40 | R17: 0.00 | S17: A | T17: 0.00 | U17: A | V17: 0.00 | W17: A | X17: 0.00 | Y17: A | Z17: 0.00 | AA17: A | AB17: 0.00 | AC17: A | AD17: 0 | AE17: A | AF17: 0.0 | AG17: A | AI17: 45 | AJ17: 45 | AK17: 0 | AL17: 0.00 | AM17: -0.00 | AN17: 0.00 | AO17: 0.00 | AP17: -0.00 | AQ17: 0 | AR17: 0.00 | AS17: -0.00 | AT17: 0 | AU17: 0.00 | AV17: -0.00 | AW17: 0 | AX17: 0.00 | AY17: 40 | AZ17: 0.00 | BA17: 0.00
C18: 40 | R18: 0.00 | S18: A | T18: 0.00 | U18: A | V18: 0.00 | W18: A | X18: 0.00 | Y18: A | Z18: 0.00 | AA18: A | AB18: 0.00 | AC18: A | AD18: 0 | AE18: A | AF18: 0.0 | AG18: A | AI18: 45 | AJ18: 45 | AK18: 0 | AL18: 0.00 | AM18: -0.00 | AN18: 0.00 | AO18: 0.00 | AP18: -0.00 | AQ18: 0 | AR18: 0.00 | AS18: -0.00 | AT18: 0 | AU18: 0.00 | AV18: -0.00 | AW18: 0 | AX18: 0.00 | AY18: 40 | AZ18: 0.00 | BA18: 0.00
A19: example circle | C19: 70 | D19: -1 | E19: 1 | F19: 90 | G19: -2 | H19: 0.5 | I19: 85 | J19: 62 | K19: 0 | L19: 1 | M19: 92 | N19: -1 | O19: 0.25 | P19: 80 | Q19: 65 | R19: =SQRT(($T$2*V19*V19)+Z19*Z19) -> 1.97 | S19: =IF(R19<1.01,"A",IF(R19<2.01,"B",IF(R19<3.01,"C","poor match"))) -> B | T19: =SQRT(($T$2*X19*X19)+AB19*AB19) -> 1.83 | U19: =IF(T19<1.01,"A",IF(T19<2.01,"B",IF(T19<3.01,"C","poor match"))) -> B | V19: 0.11 | W19: =IF(V19<1.01,"A",IF(V19<2.01,"B",IF(V19<3.01,"C","poor match"))) -> A | X19: 0.45 | Y19: =IF(X19<1.01,"A",IF(X19<2.01,"B",IF(X19<3.01,"C","poor match"))) -> A | Z19: 1.96 | AA19: =IF(Z19<1.01,"A",IF(Z19<2.01,"B",IF(Z19<3.01,"C","poor match"))) -> B | AB19: 1.72 | AC19: =IF(AB19<1.01,"A",IF(AB19<2.01,"B",IF(AB19<3.01,"C","poor match"))) -> B | AD19: =ABS((AN19-AK19)-(AT19-AQ19))*2 -> 0.25 | AE19: =IF(AD19<1.01,"A",IF(AD19<2.01,"B",IF(AD19<3.01,"C","poor match"))) -> A | AF19: =(ABS(J19-Q19))/(4.165*2.7183^(-0.05*(AK19+AN19))) -> 0.6 | AG19: =IF(AF19<1.01,"A",IF(AF19<2.01,"B",IF(AF19<3.01,"C","poor match"))) -> A | AI19: =M19+($AI$2-F19) -> 47 | AJ19: =P19+($AI$2-I19) -> 40 | AK19: =D19+E19/2 -> -0.5 | AL19: =-((E19+0.000001)/2)*(COS(2*$AI$2*3.1416/180)) -> 0.00 | AM19: =-((0.000001+E19)/2)*(SIN(2*$AI$2*3.1416/180)) -> -0.50 | AN19: =G19+H19/2 -> -1.75 | AO19: =-((H19+0.000001)/2)*(COS(2*$AI$2*3.1416/180)) -> 0.00 | AP19: =-((0.000001+H19)/2)*(SIN(2*$AI$2*3.1416/180)) -> -0.25 | AQ19: =K19+L19/2 -> 0.5 | AR19: =-((L19+0.000001)/2)*(COS(2*AI19*3.1416/180)) -> 0.03 | AS19: =-((0.000001+L19)/2)*(SIN(2*AI19*3.1416/180)) -> -0.50 | AT19: =N19+O19/2 -> -0.875 | AU19: =-((O19+0.000001)/2)*(COS(2*AJ19*3.1416/180)) -> -0.02 | AV19: =-((0.000001+O19)/2)*(SIN(2*AJ19*3.1416/180)) -> -0.12 | AW19: -1 | AX19: -0.88 | AY19: 60 | AZ19: 0.03489961318 | BA19: 0.1287420893
A20: A-cyl low/high | B20: A sph | C20: 40 | D20: -1 | E20: 1 | F20: 90 | G20: -2 | H20: 5 | I20: 90 | J20: 60 | K20: -1.75 | L20: 1 | M20: 75 | N20: -2.75 | O20: 5 | P20: 84 | Q20: 65 | R20: 1.89 | S20: B | T20: 1.94 | U20: B | V20: 0.81 | W20: A | X20: 0.87 | Y20: A | Z20: 1.50 | AA20: B | AB20: 1.50 | AC20: B | AD20: 0 | AE20: A | AF20: 1.2 | AG20: B | AI20: 30 | AJ20: 39 | AK20: -0.5 | AL20: 0.00 | AM20: -0.50 | AN20: 0.50 | AO20: 0.00 | AP20: -2.50 | AQ20: -1.25 | AR20: -0.25 | AS20: -0.43 | AT20: -0.25 | AU20: -0.52 | AV20: -2.45 | AW20: 0.75 | AX20: 0.75 | AY20: 40 | AZ20: 0.2588198953 | BA20: 0.5226436386
A21: B cyl low/high | B21: A sph | C21: 40 | D21: -1 | E21: 1 | F21: 90 | G21: -2 | H21: 5 | I21: 90 | J21: 60 | K21: -1.75 | L21: 1 | M21: 62 | N21: -2.75 | O21: 5 | P21: 77 | Q21: 65 | R21: 2.56 | S21: C | T21: 3.05 | U21: poor match | V21: 1.47 | W21: B | X21: 1.87 | Y21: B | Z21: 1.50 | AA21: B | AB21: 1.50 | AC21: B | AD21: 0 | AE21: A | AF21: 1.2 | AG21: B | AI21: 17 | AJ21: 32 | AK21: -0.5 | AL21: 0.00 | AM21: -0.50 | AN21: 0.50 | AO21: 0.00 | AP21: -2.50 | AQ21: -1.25 | AR21: -0.41 | AS21: -0.28 | AT21: -0.25 | AU21: -1.10 | AV21: -2.25 | AW21: 0.75 | AX21: 0.75 | AY21: 40 | AZ21: 0.4694730413 | BA21: 1.124758082
A22: C cyl low/high | B22: A sph | C22: 40 | D22: -1 | E22: 1 | F22: 90 | G22: -2 | H22: 5 | I22: 90 | J22: 60 | K22: -1.75 | L22: 1 | M22: 48 | N22: -2.75 | O22: 5 | P22: 70 | Q22: 65 | R22: 3.32 | S22: poor match | T22: 4.30 | U22: poor match | V22: 2.09 | W22: C | X22: 2.85 | Y22: C | Z22: 1.50 | AA22: B | AB22: 1.50 | AC22: B | AD22: 0 | AE22: A | AF22: 1.2 | AG22: B | AI22: 3 | AJ22: 25 | AK22: -0.5 | AL22: 0.00 | AM22: -0.50 | AN22: 0.50 | AO22: 0.00 | AP22: -2.50 | AQ22: -1.25 | AR22: -0.50 | AS22: -0.05 | AT22: -0.25 | AU22: -1.61 | AV22: -1.92 | AW22: 0.75 | AX22: 0.75 | AY22: 40 | AZ22: 0.6691325494 | BA22: 1.710104894
A23: A-cyl low/high | B23: B sph | C23: 40 | D23: -1 | E23: 1 | F23: 90 | G23: -2 | H23: 5 | I23: 90 | J23: 60 | K23: -2.75 | L23: 1 | M23: 75 | N23: -3.75 | O23: 5 | P23: 84 | Q23: 65 | R23: 3.68 | S23: poor match | T23: 3.71 | U23: poor match | V23: 0.81 | W23: A | X23: 0.87 | Y23: A | Z23: 3.50 | AA23: poor match | AB23: 3.50 | AC23: poor match | AD23: 0 | AE23: A | AF23: 1.2 | AG23: B | AI23: 30 | AJ23: 39 | AK23: -0.5 | AL23: 0.00 | AM23: -0.50 | AN23: 0.50 | AO23: 0.00 | AP23: -2.50 | AQ23: -2.25 | AR23: -0.25 | AS23: -0.43 | AT23: -1.25 | AU23: -0.52 | AV23: -2.45 | AW23: 1.75 | AX23: 1.75 | AY23: 40 | AZ23: 0.2588198953 | BA23: 0.5226436386
A24: B cyl low/high | B24: B sph | C24: 40 | D24: -1 | E24: 1 | F24: 90 | G24: -2 | H24: 5 | I24: 90 | J24: 60 | K24: -2.75 | L24: 1 | M24: 62 | N24: -3.75 | O24: 5 | P24: 77 | Q24: 65 | R24: 4.07 | S24: poor match | T24: 4.39 | U24: poor match | V24: 1.47 | W24: B | X24: 1.87 | Y24: B | Z24: 3.50 | AA24: poor match | AB24: 3.50 | AC24: poor match | AD24: 0 | AE24: A | AF24: 1.2 | AG24: B | AI24: 17 | AJ24: 32 | AK24: -0.5 | AL24: 0.00 | AM24: -0.50 | AN24: 0.50 | AO24: 0.00 | AP24: -2.50 | AQ24: -2.25 | AR24: -0.41 | AS24: -0.28 | AT24: -1.25 | AU24: -1.10 | AV24: -2.25 | AW24: 1.75 | AX24: 1.75 | AY24: 40 | AZ24: 0.4694730413 | BA24: 1.124758082
A25: C cyl low/high | B25: B sph | C25: 40 | D25: -1 | E25: 1 | F25: 90 | G25: -2 | H25: 5 | I25: 90 | J25: 60 | K25: -2.75 | L25: 1 | M25: 48 | N25: -3.75 | O25: 5 | P25: 70 | Q25: 65 | R25: 4.58 | S25: poor match | T25: 5.34 | U25: poor match | V25: 2.09 | W25: C | X25: 2.85 | Y25: C | Z25: 3.50 | AA25: poor match | AB25: 3.50 | AC25: poor match | AD25: 0 | AE25: A | AF25: 1.2 | AG25: B | AI25: 3 | AJ25: 25 | AK25: -0.5 | AL25: 0.00 | AM25: -0.50 | AN25: 0.50 | AO25: 0.00 | AP25: -2.50 | AQ25: -2.25 | AR25: -0.50 | AS25: -0.05 | AT25: -1.25 | AU25: -1.61 | AV25: -1.92 | AW25: 1.75 | AX25: 1.75 | AY25: 40 | AZ25: 0.6691325494 | BA25: 1.710104894
A26: A-cyl low/high | B26: C sph | C26: 40 | D26: -1 | E26: 1 | F26: 90 | G26: -2 | H26: 5 | I26: 90 | J26: 60 | K26: -3.5 | L26: 1 | M26: 75 | N26: -4.5 | O26: 5 | P26: 84 | Q26: 65 | R26: 5.13 | S26: poor match | T26: 5.15 | U26: poor match | V26: 0.81 | W26: A | X26: 0.87 | Y26: A | Z26: 5.00 | AA26: poor match | AB26: 5.00 | AC26: poor match | AD26: 0 | AE26: A | AF26: 1.2 | AG26: B | AI26: 30 | AJ26: 39 | AK26: -0.5 | AL26: 0.00 | AM26: -0.50 | AN26: 0.50 | AO26: 0.00 | AP26: -2.50 | AQ26: -3 | AR26: -0.25 | AS26: -0.43 | AT26: -2 | AU26: -0.52 | AV26: -2.45 | AW26: 2.5 | AX26: 2.50 | AY26: 40 | AZ26: 0.2588198953 | BA26: 0.5226436386
A27: B cyl low/high | B27: C sph | C27: 40 | D27: -1 | E27: 1 | F27: 90 | G27: -2 | H27: 5 | I27: 90 | J27: 60 | K27: -3.5 | L27: 1 | M27: 62 | N27: -4.5 | O27: 5 | P27: 77 | Q27: 65 | R27: 5.41 | S27: poor match | T27: 5.66 | U27: poor match | V27: 1.47 | W27: B | X27: 1.87 | Y27: B | Z27: 5.00 | AA27: poor match | AB27: 5.00 | AC27: poor match | AD27: 0 | AE27: A | AF27: 1.2 | AG27: B | AI27: 17 | AJ27: 32 | AK27: -0.5 | AL27: 0.00 | AM27: -0.50 | AN27: 0.50 | AO27: 0.00 | AP27: -2.50 | AQ27: -3 | AR27: -0.41 | AS27: -0.28 | AT27: -2 | AU27: -1.10 | AV27: -2.25 | AW27: 2.5 | AX27: 2.50 | AY27: 40 | AZ27: 0.4694730413 | BA27: 1.124758082
A28: C cyl low/high | B28: C sph | C28: 40 | D28: -1 | E28: 1 | F28: 90 | G28: -2 | H28: 5 | I28: 90 | J28: 60 | K28: -3.5 | L28: 1 | M28: 48 | N28: -4.5 | O28: 5 | P28: 70 | Q28: 65 | R28: 5.81 | S28: poor match | T28: 6.42 | U28: poor match | V28: 2.09 | W28: C | X28: 2.85 | Y28: C | Z28: 5.00 | AA28: poor match | AB28: 5.00 | AC28: poor match | AD28: 0 | AE28: A | AF28: 1.2 | AG28: B | AI28: 3 | AJ28: 25 | AK28: -0.5 | AL28: 0.00 | AM28: -0.50 | AN28: 0.50 | AO28: 0.00 | AP28: -2.50 | AQ28: -3 | AR28: -0.50 | AS28: -0.05 | AT28: -2 | AU28: -1.61 | AV28: -1.92 | AW28: 2.5 | AX28: 2.50 | AY28: 40 | AZ28: 0.6691325494 | BA28: 1.710104894
A29: simple overplus | C29: 40 | D29: -1 | E29: 1 | F29: 90 | G29: -2 | H29: 5 | I29: 90 | J29: 60 | K29: -1 | L29: 1 | M29: 90 | N29: -2 | O29: 5 | P29: 90 | Q29: 60 | R29: 0.00 | S29: A | T29: 0.00 | U29: A | V29: 0.00 | W29: A | X29: 0.00 | Y29: A | Z29: 0.00 | AA29: A | AB29: 0.00 | AC29: A | AD29: 0 | AE29: A | AF29: 0.0 | AG29: A | AI29: 45 | AJ29: 45 | AK29: -0.5 | AL29: 0.00 | AM29: -0.50 | AN29: 0.50 | AO29: 0.00 | AP29: -2.50 | AQ29: -0.5 | AR29: 0.00 | AS29: -0.50 | AT29: 0.5 | AU29: 0.00 | AV29: -2.50 | AW29: 0 | AX29: 0.00 | AY29: 40 | AZ29: 0 | BA29: 0
A30: A-cyl low/high | B30: A sph | C30: 40 | D30: -1 | E30: 1 | F30: 90 | G30: -2 | H30: 5 | I30: 90 | J30: 60 | K30: -0.5 | L30: 1 | M30: 75 | N30: -1.5 | O30: 5 | P30: 84 | Q30: 65 | R30: 1.27 | S30: B | T30: 1.35 | U30: B | V30: 0.81 | W30: =IF(V30<1.01,"A",IF(V30<2.01,"B",IF(V30<3.01,"C","poor match"))) -> A | X30: 0.87 | Y30: =IF(X30<1.01,"A",IF(X30<2.01,"B",IF(X30<3.01,"C","poor match"))) -> A | Z30: 0.56 | AA30: =IF(Z30<1.01,"A",IF(Z30<2.01,"B",IF(Z30<3.01,"C","poor match"))) -> A | AB30: 0.56 | AC30: =IF(AB30<1.01,"A",IF(AB30<2.01,"B",IF(AB30<3.01,"C","poor match"))) -> A | AD30: 0 | AE30: A | AF30: 1.2 | AG30: B | AI30: 30 | AJ30: 39 | AK30: -0.5 | AL30: 0.00 | AM30: -0.50 | AN30: 0.50 | AO30: 0.00 | AP30: -2.50 | AQ30: 0 | AR30: -0.25 | AS30: -0.43 | AT30: 1 | AU30: -0.52 | AV30: -2.45 | AW30: -0.5 | AX30: -0.50 | AY30: 40 | AZ30: 0.2588198953 | BA30: 0.5226436386
A31: B cyl low/high | B31: A sph | C31: 40 | D31: -1 | E31: 1 | F31: 90 | G31: -2 | H31: 5 | I31: 90 | J31: 60 | K31: -0.5 | L31: 1 | M31: 62 | N31: -1.5 | O31: 5 | P31: 77 | Q31: 65 | R31: 2.15 | S31: C | T31: 2.71 | U31: C | V31: 1.47 | W31: =IF(V31<1.01,"A",IF(V31<2.01,"B",IF(V31<3.01,"C","poor match"))) -> B | X31: 1.87 | Y31: =IF(X31<1.01,"A",IF(X31<2.01,"B",IF(X31<3.01,"C","poor match"))) -> B | Z31: 0.56 | AA31: =IF(Z31<1.01,"A",IF(Z31<2.01,"B",IF(Z31<3.01,"C","poor match"))) -> A | AB31: 0.56 | AC31: =IF(AB31<1.01,"A",IF(AB31<2.01,"B",IF(AB31<3.01,"C","poor match"))) -> A | AD31: 0 | AE31: A | AF31: 1.2 | AG31: B | AI31: 17 | AJ31: 32 | AK31: -0.5 | AL31: 0.00 | AM31: -0.50 | AN31: 0.50 | AO31: 0.00 | AP31: -2.50 | AQ31: 0 | AR31: -0.41 | AS31: -0.28 | AT31: 1 | AU31: -1.10 | AV31: -2.25 | AW31: -0.5 | AX31: -0.50 | AY31: 40 | AZ31: 0.4694730413 | BA31: 1.124758082
A32: C cyl low/high | B32: A sph | C32: 40 | D32: -1 | E32: 1 | F32: 90 | G32: -2 | H32: 5 | I32: 90 | J32: 60 | K32: -0.5 | L32: 1 | M32: 48 | N32: -1.5 | O32: 5 | P32: 70 | Q32: 65 | R32: 3.01 | S32: poor match | T32: 4.07 | U32: poor match | V32: 2.09 | W32: C | X32: 2.85 | Y32: C | Z32: 0.56 | AA32: A | AB32: 0.56 | AC32: A | AD32: 0 | AE32: A | AF32: 1.2 | AG32: B | AI32: 3 | AJ32: 25 | AK32: -0.5 | AL32: 0.00 | AM32: -0.50 | AN32: 0.50 | AO32: 0.00 | AP32: -2.50 | AQ32: 0 | AR32: -0.50 | AS32: -0.05 | AT32: 1 | AU32: -1.61 | AV32: -1.92 | AW32: -0.5 | AX32: -0.50 | AY32: 40 | AZ32: 0.6691325494 | BA32: 1.710104894
A33: A-cyl low/high | B33: B sph | C33: 40 | D33: -1 | E33: 1 | F33: 90 | G33: -2 | H33: 5 | I33: 90 | J33: 60 | K33: 0 | L33: 1 | M33: 75 | N33: -1 | O33: 5 | P33: 84 | Q33: 65 | R33: 1.60 | S33: B | T33: 1.67 | U33: B | V33: 0.81 | W33: A | X33: 0.87 | Y33: A | Z33: 1.12 | AA33: B | AB33: 1.12 | AC33: B | AD33: 0 | AE33: A | AF33: 1.2 | AG33: B | AI33: 30 | AJ33: 39 | AK33: -0.5 | AL33: 0.00 | AM33: -0.50 | AN33: 0.50 | AO33: 0.00 | AP33: -2.50 | AQ33: 0.5 | AR33: -0.25 | AS33: -0.43 | AT33: 1.5 | AU33: -0.52 | AV33: -2.45 | AW33: -1 | AX33: -1.00 | AY33: 40 | AZ33: 0.2588198953 | BA33: 0.5226436386
A34: B cyl low/high | B34: B sph | C34: 40 | D34: -1 | E34: 1 | F34: 90 | G34: -2 | H34: 5 | I34: 90 | J34: 60 | K34: 0 | L34: 1 | M34: 62 | N34: -1 | O34: 5 | P34: 77 | Q34: 65 | R34: 2.36 | S34: C | T34: 2.88 | U34: C | V34: 1.47 | W34: B | X34: 1.87 | Y34: B | Z34: 1.12 | AA34: B | AB34: 1.12 | AC34: B | AD34: 0 | AE34: A | AF34: 1.2 | AG34: B | AI34: 17 | AJ34: 32 | AK34: -0.5 | AL34: 0.00 | AM34: -0.50 | AN34: 0.50 | AO34: 0.00 | AP34: -2.50 | AQ34: 0.5 | AR34: -0.41 | AS34: -0.28 | AT34: 1.5 | AU34: -1.10 | AV34: -2.25 | AW34: -1 | AX34: -1.00 | AY34: 40 | AZ34: 0.4694730413 | BA34: 1.124758082
A35: C cyl low/high | B35: B sph | C35: 40 | D35: -1 | E35: 1 | F35: 90 | G35: -2 | H35: 5 | I35: 90 | J35: 60 | K35: 0 | L35: 1 | M35: 48 | N35: -1 | O35: 5 | P35: 70 | Q35: 65 | R35: 3.16 | S35: poor match | T35: 4.18 | U35: poor match | V35: 2.09 | W35: C | X35: 2.85 | Y35: C | Z35: 1.12 | AA35: B | AB35: 1.12 | AC35: B | AD35: 0 | AE35: A | AF35: 1.2 | AG35: B | AI35: 3 | AJ35: 25 | AK35: -0.5 | AL35: 0.00 | AM35: -0.50 | AN35: 0.50 | AO35: 0.00 | AP35: -2.50 | AQ35: 0.5 | AR35: -0.50 | AS35: -0.05 | AT35: 1.5 | AU35: -1.61 | AV35: -1.92 | AW35: -1 | AX35: -1.00 | AY35: 40 | AZ35: 0.6691325494 | BA35: 1.710104894
A36: A-cyl low/high | B36: C sph | C36: 40 | D36: -1 | E36: 1 | F36: 90 | G36: -2 | H36: 5 | I36: 90 | J36: 60 | K36: 0.5 | L36: 1 | M36: 75 | N36: -0.5 | O36: 5 | P36: 84 | Q36: 65 | R36: 2.04 | S36: C | T36: 2.09 | U36: C | V36: 0.81 | W36: A | X36: 0.87 | Y36: A | Z36: 1.69 | AA36: B | AB36: 1.69 | AC36: B | AD36: 0 | AE36: A | AF36: 1.2 | AG36: B | AI36: 30 | AJ36: 39 | AK36: -0.5 | AL36: 0.00 | AM36: -0.50 | AN36: 0.50 | AO36: 0.00 | AP36: -2.50 | AQ36: 1 | AR36: -0.25 | AS36: -0.43 | AT36: 2 | AU36: -0.52 | AV36: -2.45 | AW36: -1.5 | AX36: -1.50 | AY36: 40 | AZ36: 0.2588198953 | BA36: 0.5226436386
A37: B cyl low/high | B37: C sph | C37: 40 | D37: -1 | E37: 1 | F37: 90 | G37: -2 | H37: 5 | I37: 90 | J37: 60 | K37: 0.5 | L37: 1 | M37: 62 | N37: -0.5 | O37: 5 | P37: 77 | Q37: 65 | R37: 2.67 | S37: C | T37: 3.14 | U37: poor match | V37: 1.47 | W37: B | X37: 1.87 | Y37: B | Z37: 1.69 | AA37: B | AB37: 1.69 | AC37: B | AD37: 0 | AE37: A | AF37: 1.2 | AG37: B | AI37: 17 | AJ37: 32 | AK37: -0.5 | AL37: 0.00 | AM37: -0.50 | AN37: 0.50 | AO37: 0.00 | AP37: -2.50 | AQ37: 1 | AR37: -0.41 | AS37: -0.28 | AT37: 2 | AU37: -1.10 | AV37: -2.25 | AW37: -1.5 | AX37: -1.50 | AY37: 40 | AZ37: 0.4694730413 | BA37: 1.124758082
A38: C cyl low/high | B38: C sph | C38: 40 | D38: -1 | E38: 1 | F38: 90 | G38: -2 | H38: 5 | I38: 90 | J38: 60 | K38: 0.5 | L38: 1 | M38: 48 | N38: -0.5 | O38: 5 | P38: 70 | Q38: 65 | R38: 3.40 | S38: poor match | T38: 4.37 | U38: poor match | V38: 2.09 | W38: C | X38: 2.85 | Y38: C | Z38: 1.69 | AA38: B | AB38: 1.69 | AC38: B | AD38: 0 | AE38: A | AF38: 1.2 | AG38: B | AI38: 3 | AJ38: 25 | AK38: -0.5 | AL38: 0.00 | AM38: -0.50 | AN38: 0.50 | AO38: 0.00 | AP38: -2.50 | AQ38: 1 | AR38: -0.50 | AS38: -0.05 | AT38: 2 | AU38: -1.61 | AV38: -1.92 | AW38: -1.5 | AX38: -1.50 | AY38: 40 | AZ38: 0.6691325494 | BA38: 1.710104894
A39: minus cyl | B39: A sph | C39: 30 | D39: -1 | E39: 1 | F39: 90 | G39: -2 | H39: 5 | I39: 90 | J39: 60 | K39: 0 | L39: -1 | M39: 182 | N39: 3 | O39: -5 | P39: 178 | Q39: 65 | R39: 0.15 | S39: A | T39: 0.41 | U39: A | V39: 0.11 | W39: A | X39: 0.29 | Y39: A | Z39: 0.00 | AA39: A | AB39: 0.00 | AC39: A | AD39: 0 | AE39: A | AF39: 1.2 | AG39: B | AI39: 137 | AJ39: 133 | AK39: -0.5 | AL39: 0.00 | AM39: -0.50 | AN39: 0.50 | AO39: 0.00 | AP39: -2.50 | AQ39: -0.5 | AR39: 0.03 | AS39: -0.50 | AT39: 0.5 | AU39: -0.17 | AV39: -2.49 | AW39: 0 | AX39: 0.00 | AY39: 30 | AZ39: 0.03490324926 | BA39: 0.1744795366
C40: 70 | R40: 0.00 | S40: A | T40: 0.00 | U40: A | V40: 0.00 | W40: A | X40: 0.00 | Y40: A | Z40: 0.00 | AA40: A | AB40: 0.00 | AC40: A | AD40: 0 | AE40: A | AF40: 0.0 | AG40: A | AI40: 45 | AJ40: 45 | AK40: 0 | AL40: 0.00 | AM40: -0.00 | AN40: 0.00 | AO40: 0.00 | AP40: -0.00 | AQ40: 0 | AR40: 0.00 | AS40: -0.00 | AT40: 0 | AU40: 0.00 | AV40: -0.00 | AW40: 0 | AX40: 0.00 | AY40: 60 | AZ40: 0 | BA40: 0
C41: 70 | R41: 0.00 | S41: A | T41: 0.00 | U41: A | V41: 0.00 | W41: A | X41: 0.00 | Y41: A | Z41: 0.00 | AA41: A | AB41: 0.00 | AC41: A | AD41: 0 | AE41: A | AF41: 0.0 | AG41: A | AI41: 45 | AJ41: 45 | AK41: 0 | AL41: 0.00 | AM41: -0.00 | AN41: 0.00 | AO41: 0.00 | AP41: -0.00 | AQ41: 0 | AR41: 0.00 | AS41: -0.00 | AT41: 0 | AU41: 0.00 | AV41: -0.00 | AW41: 0 | AX41: 0.00 | AY41: 60 | AZ41: 0 | BA41: 0
